fUST/lending_fUST_20241229
["ID","MTS","AMOUNT","RATE_DAILY","PERIOD"]
[347041120,1735481445502,-500.0,0.00010062,2]
[347041122,1735481445511,-500.0,0.00010062,2]
[347041124,1735481445520,-500.0,0.00010062,2]
[347041125,1735481445532,-500.0,0.00010062,2]
[347041126,1735481445542,-251.59125794,0.00010062,2]
[347041127,1735481445552,-500.0,0.00010062,2]
[347041128,1735481445561,-500.0,0.00010062,2]
[347041129,1735481445571,-535.06,0.00010062,2]
[347041130,1735481445580,-754.68,0.00010062,2]
[347041131,1735481445589,-1646.12,0.00010062,2]
[347041132,1735481445599,-756.19,0.00010062,2]
[347041133,1735481445608,-500.0,0.00010062,2]
[347041134,1735481445617,-598.21,0.00010062,2]
[347041135,1735481445626,-500.0,0.00010062,2]
[347041136,1735481445635,-500.0,0.00010062,2]
[347041137,1735481445645,-500.0,0.00010062,2]
[347041138,1735481445654,-611.42,0.00010062,2]
[347041139,1735481445663,-500.0,0.00010062,2]
[347041140,1735481445674,-500.0,0.00010062,2]
[347041141,1735481445684,-1165.8,0.00010062,2]
[347041142,1735481445693,-500.0,0.00010062,2]
[347041143,1735481445702,-500.0,0.00010062,2]
[347041144,1735481445712,-602.63,0.00010062,2]
[347041145,1735481445721,-500.0,0.00010062,2]
[347041146,1735481445730,-717.69,0.00010062,2]
[347041147,1735481445739,-692.5,0.00010062,2]
[347041148,1735481445748,-500.0,0.00010062,2]
[347041149,1735481445757,-500.0,0.00010062,2]
[347041150,1735481445767,-500.0,0.00010062,2]
[347041151,1735481445776,-598.29,0.00010062,2]
[347041152,1735481445785,-500.0,0.00010062,2]
[347041153,1735481445795,-500.0,0.00010062,2]
[347041154,1735481445804,-500.0,0.00010062,2]
[347041155,1735481445813,-500.0,0.00010062,2]
[347041156,1735481445822,-500.0,0.00010062,2]
[347041157,1735481445831,-500.0,0.00010062,2]
[347041158,1735481445840,-500.0,0.00010062,2]
[347041159,1735481445849,-500.0,0.00010062,2]
[347041160,1735481445858,-500.0,0.00010062,2]
[347041161,1735481445867,-500.0,0.00010063,2]
[347041162,1735481445877,-500.0,0.00010063,2]
[347041163,1735481445887,-500.0,0.00010063,2]
[347041164,1735481445897,-500.0,0.00010063,2]
[347041165,1735481445906,-500.0,0.00010063,2]
[347041166,1735481445916,-550.69777991,0.00010063,2]
[347041167,1735481445925,-500.0,0.00010063,2]
[347041168,1735481445934,-500.0,0.00010063,2]
[347041169,1735481445943,-500.0,0.00010063,2]
[347041170,1735481445953,-500.0,0.00010063,2]
[347041171,1735481445962,-500.0,0.00010063,2]
[347041172,1735481445973,-500.0,0.00010063,2]
[347041173,1735481445984,-500.0,0.00010063,2]
[347041174,1735481445993,-500.0,0.00010063,2]
[347041175,1735481446002,-500.0,0.00010063,2]
[347041176,1735481446012,-14519.97,0.00010063,2]
[347041177,1735481446021,-408.91472091,0.00010063,2]
[347041178,1735481446030,-521.93,0.00010063,2]
[347041179,1735481446040,-500.0,0.00010063,2]
[347041180,1735481446049,-1654.88,0.00010064,2]
[347041181,1735481446058,-500.0,0.00010064,2]
[347041182,1735481446068,-500.0,0.00010064,2]
[347041183,1735481446076,-500.0,0.00010064,2]
[347041184,1735481446086,-500.0,0.00010064,2]
[347041185,1735481446096,-500.0,0.00010064,2]
[347041186,1735481446105,-500.0,0.00010064,2]
[347041187,1735481446114,-500.0,0.00010064,2]
[347041188,1735481446125,-500.0,0.00010064,2]
[347041189,1735481446134,-500.0,0.00010064,2]
[347041190,1735481446143,-500.0,0.00010064,2]
[347041191,1735481446152,-500.0,0.00010064,2]
[347041192,1735481446161,-500.0,0.00010064,2]
[347041193,1735481446171,-500.0,0.00010064,2]
[347041194,1735481446181,-500.0,0.00010064,2]
[347041195,1735481446190,-679.38,0.00010064,2]
[347041196,1735481446200,-679.38,0.00010064,2]
[347041197,1735481446210,-2927.25,0.00010065,2]
[347041198,1735481446220,-587.66,0.00010065,2]
[347041199,1735481446230,-500.0,0.00010065,2]
[347041200,1735481446239,-4583.19,0.00010066,2]
[347041201,1735481446249,-679.38,0.00010067,2]
[347041202,1735481446258,-500.0,0.00010332,2]
[347041203,1735481446268,-500.0,0.00010334,2]
[347041204,1735481446277,-1446.72,0.00010334,2]
[347041205,1735481446286,-731.37,0.00010334,2]
[347041206,1735481446295,-500.0,0.00010336,2]
[347041207,1735481446304,-500.0,0.00010336,2]
[347041208,1735481446314,-500.0,0.00010336,2]
[347041209,1735481446323,-500.0,0.00010336,2]
[347041210,1735481446333,-500.0,0.00010336,2]
[347041211,1735481446342,-500.0,0.00010336,2]
[347041212,1735481446351,-621.02,0.00010336,2]
[347041213,1735481446361,-500.0,0.00010336,2]
[347041214,1735481446370,-500.0,0.00010336,2]
[347041215,1735481446379,-500.0,0.00010336,2]
[347041216,1735481446390,-500.0,0.00010336,2]
[347041217,1735481446400,-500.0,0.00010336,2]
[347041218,1735481446410,-535.06,0.00010336,2]
[347041219,1735481446419,-754.68,0.00010336,2]
[347041220,1735481446428,-1646.12,0.00010336,2]
[347041221,1735481446437,-756.19,0.00010336,2]
[347041222,1735481446451,-500.0,0.00010336,2]
[347041223,1735481446461,-598.21,0.00010336,2]
[347041224,1735481446470,-500.0,0.00010336,2]
[347041225,1735481446479,-500.0,0.00010336,2]
[347041226,1735481446488,-500.0,0.00010336,2]
[347041227,1735481446498,-500.0,0.00010336,2]
[347041228,1735481446507,-1165.8,0.00010336,2]
[347041229,1735481446515,-500.0,0.00010336,2]
[347041230,1735481446525,-602.63,0.00010336,2]
[347041231,1735481446598,-500.0,0.00010336,2]
[347041232,1735481446607,-717.69,0.00010336,2]
[347041233,1735481446616,-692.5,0.00010336,2]
[347041234,1735481446625,-500.0,0.00010336,2]
[347041235,1735481446634,-500.0,0.00010336,2]
[347041236,1735481446643,-500.0,0.00010336,2]
[347041237,1735481446652,-598.29,0.00010336,2]
[347041238,1735481446661,-500.0,0.00010336,2]
[347041239,1735481446669,-500.0,0.00010336,2]
[347041240,1735481446678,-500.0,0.00010336,2]
[347041241,1735481446687,-500.0,0.00010336,2]
[347041242,1735481446697,-500.0,0.00010336,2]
[347041243,1735481446706,-500.0,0.00010336,2]
[347041244,1735481446714,-500.0,0.00010336,2]
[347041245,1735481446723,-429.48,0.00010337,2]
[347041246,1735481446732,-500.0,0.00010337,2]
[347041247,1735481446741,-500.0,0.00010337,2]
[347041248,1735481446750,-500.0,0.00010337,2]
[347041249,1735481446760,-500.0,0.00010337,2]
[347041250,1735481446768,-495.80818169,0.00010337,2]
[347041251,1735481446777,-500.0,0.00010337,2]
[347041252,1735481446786,-500.0,0.00010337,2]
[347041253,1735481446795,-500.0,0.00010337,2]
[347041254,1735481446804,-500.0,0.00010337,2]
[347041255,1735481446813,-500.0,0.00010337,2]
[347041256,1735481446822,-500.0,0.00010337,2]
[347041257,1735481446831,-500.0,0.00010337,2]
[347041258,1735481446840,-500.0,0.00010337,2]
[347041259,1735481446850,-14519.97,0.00010337,2]
[347041260,1735481446859,-521.93,0.00010337,2]
[347041261,1735481446868,-500.0,0.00010337,2]
[347041262,1735481446877,-1654.88,0.00010338,2]
[347041263,1735481446886,-500.0,0.00010338,2]
[347041264,1735481446896,-500.0,0.00010338,2]
[347041265,1735481446905,-611.96981022,0.00010338,2]
[347041266,1735481446914,-181.77235031,0.00010338,2]
[347041267,1735481446923,-500.0,0.00010338,2]
[347041268,1735481446933,-500.0,0.00010338,2]
[347041269,1735481446942,-519.54130801,0.00010338,2]
[347041270,1735481446951,-500.0,0.00010338,2]
[347041271,1735481446960,-500.0,0.00010338,2]
[347041272,1735481446969,-500.0,0.00010338,2]
[347041273,1735481446978,-500.0,0.00010338,2]
[347041274,1735481446987,-500.0,0.00010338,2]
[347041275,1735481446997,-500.0,0.00010338,2]
[347041276,1735481447006,-500.0,0.00010338,2]
[347041277,1735481447015,-679.38,0.00010338,2]
[347041278,1735481447024,-2927.25,0.00010339,2]
[347041279,1735481447033,-679.38,0.00010339,2]
[347041280,1735481447042,-587.66,0.00010339,2]
[347041281,1735481447052,-500.0,0.00010339,2]
[347041282,1735481447061,-4583.19,0.0001034,2]
[347041283,1735481447070,-153.0,0.00010356,2]
[347041284,1735481447079,-321.4358717,0.00010356,2]
[347041285,1735481447088,-306.9256211,0.00010356,2]
[347041286,1735481447097,-214.3278492,0.00010356,2]
[347041287,1735481447106,-214.3278492,0.00010356,2]
[347041288,1735481447115,-153.4628105,0.00010356,2]
[347041289,1735481447124,-214.1379129,0.00010356,2]
[347041290,1735481447134,-306.0,0.00010356,2]
[347041291,1735481447143,-153.0,0.00010356,2]
[347041292,1735481447152,-428.3655377,0.00010356,2]
[347041293,1735481447161,-306.8182863,0.00010356,2]
[347041294,1735481447170,-153.0,0.00010356,2]
[347041295,1735481447180,-153.0,0.00010356,2]
[347041296,1735481447189,-1332.0,0.00010513,2]
[347041297,1735481447198,-500.0,0.00010606,2]
[347041298,1735481447208,-500.0,0.00010608,2]
[347041299,1735481447217,-1446.72,0.00010608,2]
[347041300,1735481447226,-731.37,0.00010608,2]
[347041301,1735481447235,-500.0,0.0001061,2]
[347041302,1735481447247,-500.0,0.0001061,2]
[347041303,1735481447262,-500.0,0.0001061,2]
[347041304,1735481447276,-500.0,0.0001061,2]
[347041305,1735481447289,-500.0,0.0001061,2]
[347041306,1735481447302,-500.0,0.0001061,2]
[347041307,1735481447316,-621.02,0.0001061,2]
[347041308,1735481447329,-500.0,0.0001061,2]
[347041309,1735481447343,-500.0,0.0001061,2]
[347041310,1735481447357,-500.0,0.0001061,2]
[347041311,1735481447370,-500.0,0.0001061,2]
[347041312,1735481447385,-500.0,0.0001061,2]
[347041313,1735481447397,-535.06,0.0001061,2]
[347041314,1735481447409,-754.68,0.0001061,2]
[347041315,1735481447423,-1646.12,0.0001061,2]
[347041316,1735481447436,-756.19,0.0001061,2]
[347041317,1735481447449,-598.21,0.0001061,2]
[347041318,1735481447464,-157.26,0.0001061,2]
[347041319,1735481447476,-500.0,0.0001061,2]
[347041320,1735481447488,-500.0,0.0001061,2]
[347041321,1735481447505,-500.0,0.0001061,2]
[347041322,1735481447521,-1165.8,0.0001061,2]
[347041323,1735481447536,-500.0,0.0001061,2]
[347041324,1735481447551,-602.63,0.0001061,2]
[347041325,1735481447562,-500.0,0.0001061,2]
[347041326,1735481447573,-717.69,0.0001061,2]
[347041327,1735481447584,-692.5,0.0001061,2]
[347041328,1735481447597,-500.0,0.0001061,2]
[347041329,1735481447611,-500.0,0.0001061,2]
[347041330,1735481447624,-500.0,0.0001061,2]
[347041331,1735481447635,-598.29,0.0001061,2]
[347041332,1735481447648,-500.0,0.0001061,2]
[347041333,1735481447662,-500.0,0.0001061,2]
[347041334,1735481447674,-500.0,0.0001061,2]
[347041335,1735481447686,-500.0,0.0001061,2]
[347041336,1735481447697,-500.0,0.0001061,2]
[347041337,1735481447709,-500.0,0.0001061,2]
[347041338,1735481447721,-500.0,0.0001061,2]
[347041339,1735481447733,-500.0,0.00010611,2]
[347041340,1735481447744,-500.0,0.00010611,2]
[347041341,1735481447756,-500.0,0.00010611,2]
[347041342,1735481447767,-500.0,0.00010611,2]
[347041343,1735481447779,-500.0,0.00010611,2]
[347041344,1735481447791,-500.0,0.00010611,2]
[347041345,1735481447802,-500.0,0.00010611,2]
[347041346,1735481447814,-500.0,0.00010611,2]
[347041347,1735481447826,-500.0,0.00010611,2]
[347041348,1735481447838,-500.0,0.00010611,2]
[347041349,1735481447849,-500.0,0.00010611,2]
[347041350,1735481447861,-500.0,0.00010611,2]
[347041351,1735481447873,-14519.97,0.00010611,2]
[347041352,1735481447884,-521.93,0.00010611,2]
[347041353,1735481447896,-1654.88,0.00010612,2]
[347041354,1735481447908,-500.0,0.00010612,2]
[347041355,1735481447920,-500.0,0.00010612,2]
[347041356,1735481447930,-500.0,0.00010612,2]
[347041357,1735481447942,-500.0,0.00010612,2]
[347041358,1735481447953,-500.0,0.00010612,2]
[347041359,1735481447966,-577.81,0.00010612,2]
[347041360,1735481447977,-500.0,0.00010612,2]
[347041361,1735481447988,-500.0,0.00010612,2]
[347041362,1735481448000,-438.29445206,0.00010612,2]
[347041363,1735481448014,-679.38,0.00010612,2]
[347041364,1735481448026,-2927.25,0.00010613,2]
[347041365,1735481448038,-679.38,0.00010613,2]
[347041366,1735481448051,-587.66,0.00010613,2]
[347041367,1735481448063,-500.0,0.00010613,2]
[347041368,1735481448075,-4583.19,0.00010614,2]
[347041369,1735481448087,-500.0,0.0001088,2]
[347041370,1735481448099,-500.0,0.00010882,2]
[347041371,1735481448110,-1446.72,0.00010882,2]
[347041372,1735481448122,-731.37,0.00010882,2]
[347041373,1735481448134,-435.94476184,0.00010884,2]
[347041374,1735481448231,-500.0,0.00010884,2]
[347041375,1735481448263,-500.0,0.00010884,2]
[347041376,1735481448273,-500.0,0.00010884,2]
[347041377,1735481448281,-500.0,0.00010884,2]
[347041378,1735481448291,-500.0,0.00010884,2]
[347041379,1735481448300,-621.02,0.00010884,2]
[347041380,1735481448309,-500.0,0.00010884,2]
[347041381,1735481448318,-500.0,0.00010884,2]
[347041382,1735481448327,-500.0,0.00010884,2]
[347041383,1735481448337,-500.0,0.00010884,2]
[347041384,1735481448345,-500.0,0.00010884,2]
[347041385,1735481448355,-535.06,0.00010884,2]
[347041386,1735481448364,-754.68,0.00010884,2]
[347041387,1735481448373,-1646.12,0.00010884,2]
[347041388,1735481448382,-756.19,0.00010884,2]
[347041389,1735481448391,-598.21,0.00010884,2]
[347041390,1735481448400,-500.0,0.00010884,2]
[347041391,1735481448408,-500.0,0.00010884,2]
[347041392,1735481448417,-500.0,0.00010884,2]
[347041393,1735481448426,-1165.8,0.00010884,2]
[347041394,1735481448435,-535.3919373,0.00010884,2]
[347041395,1735481448446,-602.63,0.00010884,2]
[347041396,1735481448458,-717.69,0.00010884,2]
[347041397,1735481448467,-692.5,0.00010884,2]
[347041398,1735481448476,-500.0,0.00010884,2]
[347041399,1735481448487,-500.0,0.00010884,2]
[347041400,1735481448496,-500.0,0.00010884,2]
[347041401,1735481448505,-598.29,0.00010884,2]
[347041402,1735481448514,-500.0,0.00010884,2]
[347041403,1735481448524,-500.0,0.00010884,2]
[347041404,1735481448534,-500.0,0.00010884,2]
[347041405,1735481448543,-500.0,0.00010884,2]
[347041406,1735481448553,-500.0,0.00010884,2]
[347041407,1735481448562,-500.0,0.00010884,2]
[347041408,1735481448571,-500.0,0.00010884,2]
[347041409,1735481448580,-500.0,0.00010885,2]
[347041410,1735481448590,-500.0,0.00010885,2]
[347041411,1735481448599,-500.0,0.00010885,2]
[347041412,1735481448609,-500.0,0.00010885,2]
[347041413,1735481448618,-500.0,0.00010885,2]
[347041414,1735481448628,-500.0,0.00010885,2]
[347041415,1735481448637,-500.0,0.00010885,2]
[347041416,1735481448646,-500.0,0.00010885,2]
[347041417,1735481448656,-500.0,0.00010885,2]
[347041418,1735481448665,-14519.97,0.00010885,2]
[347041419,1735481448675,-521.93,0.00010885,2]
[347041420,1735481448684,-1654.88,0.00010886,2]
[347041421,1735481448694,-500.0,0.00010886,2]
[347041422,1735481448703,-500.0,0.00010886,2]
[347041423,1735481448713,-500.0,0.00010886,2]
[347041424,1735481448722,-500.0,0.00010886,2]
[347041425,1735481448732,-500.0,0.00010886,2]
[347041426,1735481448741,-500.0,0.00010886,2]
[347041427,1735481448750,-500.0,0.00010886,2]
[347041428,1735481448759,-679.38,0.00010886,2]
[347041429,1735481448769,-2927.25,0.00010887,2]
[347041430,1735481448779,-679.38,0.00010887,2]
[347041431,1735481448788,-587.66,0.00010887,2]
[347041432,1735481448797,-500.0,0.00010887,2]
[347041433,1735481448806,-4583.19,0.00010888,2]
[347041434,1735481448815,-352.4553754,0.00011041,2]
[347041435,1735481448824,-153.5094505,0.00011041,2]
[347041436,1735481448833,-153.5094505,0.00011041,2]
[347041437,1735481448842,-153.5094505,0.00011041,2]
[347041438,1735481448851,-444.1983521,0.00011096,2]
[347041439,1735481448861,-187.551809,0.00011096,2]
[347041440,1735481448870,-153.4628105,0.00011096,2]
[347041441,1735481448880,-500.0,0.00011156,2]
[347041442,1735481448889,-1446.72,0.00011156,2]
[347041443,1735481448898,-731.37,0.00011156,2]
[347041444,1735481448907,-500.0,0.00011158,2]
[347041445,1735481448917,-500.0,0.00011158,2]
[347041446,1735481448926,-500.0,0.00011158,2]
[347041447,1735481448935,-621.02,0.00011158,2]
[347041448,1735481448944,-500.0,0.00011158,2]
[347041449,1735481448953,-500.0,0.00011158,2]
[347041450,1735481448962,-500.0,0.00011158,2]
[347041451,1735481448972,-500.0,0.00011158,2]
[347041452,1735481448981,-500.0,0.00011158,2]
[347041453,1735481448990,-535.06,0.00011158,2]
[347041454,1735481449000,-754.68,0.00011158,2]
[347041455,1735481449009,-1646.12,0.00011158,2]
[347041456,1735481449019,-756.19,0.00011158,2]
[347041457,1735481449028,-598.21,0.00011158,2]
[347041458,1735481449037,-500.0,0.00011158,2]
[347041459,1735481449046,-500.0,0.00011158,2]
[347041460,1735481449056,-500.0,0.00011158,2]
[347041461,1735481449065,-1165.8,0.00011158,2]
[347041462,1735481449076,-602.63,0.00011158,2]
[347041463,1735481449086,-717.69,0.00011158,2]
[347041464,1735481449095,-692.5,0.00011158,2]
[347041465,1735481449105,-500.0,0.00011158,2]
[347041466,1735481449114,-500.0,0.00011158,2]
[347041467,1735481449123,-500.0,0.00011158,2]
[347041468,1735481449133,-598.29,0.00011158,2]
[347041469,1735481449142,-500.0,0.00011158,2]
[347041470,1735481449152,-500.0,0.00011158,2]
[347041471,1735481449162,-500.0,0.00011158,2]
[347041472,1735481449171,-500.0,0.00011158,2]
[347041473,1735481449180,-500.0,0.00011158,2]
[347041474,1735481449190,-500.0,0.00011158,2]
[347041475,1735481449199,-500.0,0.00011158,2]
[347041476,1735481449208,-500.0,0.00011159,2]
[347041477,1735481449218,-500.0,0.00011159,2]
[347041478,1735481449227,-500.0,0.00011159,2]
[347041479,1735481449236,-500.0,0.00011159,2]
[347041480,1735481449245,-500.0,0.00011159,2]
[347041481,1735481449254,-500.0,0.00011159,2]
[347041482,1735481449264,-14519.97,0.00011159,2]
[347041483,1735481449273,-521.93,0.00011159,2]
[347041484,1735481449283,-1654.88,0.0001116,2]
[347041485,1735481449293,-500.0,0.0001116,2]
[347041486,1735481449302,-500.0,0.0001116,2]
[347041487,1735481449311,-500.0,0.0001116,2]
[347041488,1735481449320,-500.0,0.0001116,2]
[347041489,1735481449330,-500.0,0.0001116,2]
[347041490,1735481449339,-500.0,0.0001116,2]
[347041491,1735481449348,-679.38,0.0001116,2]
[347041492,1735481449358,-2927.25,0.00011161,2]
[347041493,1735481449367,-679.38,0.00011161,2]
[347041494,1735481449376,-587.66,0.00011161,2]
[347041495,1735481449385,-500.0,0.00011161,2]
[347041496,1735481449394,-4583.19,0.00011162,2]
[347041497,1735481449404,-500.33973294,0.00011187,2]
[347041498,1735481449413,-500.0,0.00011187,2]
[347041499,1735481449422,-484.58326725,0.00011187,2]
[347041500,1735481449432,-500.0,0.00011279,2]
[347041501,1735481449443,-500.95555727,0.00011279,2]
[347041502,1735481449453,-526.76271154,0.00011279,2]
[347041503,1735481449462,-500.0,0.0001143,2]
[347041504,1735481449472,-1446.72,0.0001143,2]
[347041505,1735481449481,-731.37,0.0001143,2]
[347041506,1735481449491,-500.0,0.00011432,2]
[347041507,1735481449500,-500.0,0.00011432,2]
[347041508,1735481449509,-500.0,0.00011432,2]
[347041509,1735481449518,-621.02,0.00011432,2]
[347041510,1735481449529,-500.0,0.00011432,2]
[347041511,1735481449538,-500.0,0.00011432,2]
[347041512,1735481449547,-500.0,0.00011432,2]
[347041513,1735481449556,-500.0,0.00011432,2]
[347041514,1735481449566,-500.0,0.00011432,2]
[347041515,1735481449575,-535.06,0.00011432,2]
[347041516,1735481449584,-754.68,0.00011432,2]
[347041517,1735481449593,-1646.12,0.00011432,2]
[347041518,1735481449602,-756.19,0.00011432,2]
[347041519,1735481449611,-598.21,0.00011432,2]
[347041520,1735481449621,-485.46221003,0.00011432,2]
[347041521,1735481449630,-500.0,0.00011432,2]
[347041522,1735481449639,-500.0,0.00011432,2]
[347041523,1735481449649,-1165.8,0.00011432,2]
[347041524,1735481449658,-602.63,0.00011432,2]
[347041525,1735481449667,-717.69,0.00011432,2]
[347041526,1735481449676,-692.5,0.00011432,2]
[347041527,1735481449685,-500.0,0.00011432,2]
[347041528,1735481449694,-500.0,0.00011432,2]
[347041529,1735481449703,-500.0,0.00011432,2]
[347041530,1735481449713,-598.29,0.00011432,2]
[347041531,1735481449723,-500.0,0.00011432,2]
[347041532,1735481449732,-500.0,0.00011432,2]
[347041533,1735481449741,-500.0,0.00011432,2]
[347041534,1735481449750,-500.0,0.00011432,2]
[347041535,1735481449760,-290.71,0.00011432,2]
[347041536,1735481449769,-500.0,0.00011432,2]
[347041537,1735481449779,-500.0,0.00011432,2]
[347041538,1735481449787,-500.0,0.00011433,2]
[347041539,1735481449797,-500.0,0.00011433,2]
[347041540,1735481449806,-14519.97,0.00011433,2]
[347041541,1735481449815,-521.93,0.00011433,2]
[347041542,1735481449828,-1654.88,0.00011434,2]
[347041543,1735481449838,-500.0,0.00011434,2]
[347041544,1735481449847,-500.0,0.00011434,2]
[347041545,1735481449856,-500.0,0.00011434,2]
[347041546,1735481449866,-500.0,0.00011434,2]
[347041547,1735481449875,-500.0,0.00011434,2]
[347041548,1735481449884,-500.0,0.00011434,2]
[347041549,1735481449894,-679.38,0.00011434,2]
[347041550,1735481449903,-679.38,0.00011434,2]
[347041551,1735481449913,-679.38,0.00011434,2]
[347041552,1735481449922,-679.38,0.00011434,2]
[347041553,1735481449932,-679.61061393,0.00011434,2]
[347041554,1735481450014,-2927.25,0.00011435,2]
[347041555,1735481450023,-587.66,0.00011435,2]
[347041556,1735481450032,-500.0,0.00011435,2]
[347041557,1735481450041,-4583.19,0.00011436,2]
[347041558,1735481450050,-168.0,0.00011453,2]
[347041559,1735481450059,-168.0,0.00011453,2]
[347041560,1735481450070,-168.0,0.00011453,2]
[347041561,1735481450079,-153.95,0.00011453,2]
[347041562,1735481450088,-10578.27759194,0.00011607,2]
[347041563,1735481450097,-403.808,0.000117,2]
[347041564,1735481450107,-228.20931706,0.000117,2]
[347041565,1735481450116,-500.0,0.00011704,2]
[347041566,1735481450125,-1446.72,0.00011704,2]
[347041567,1735481450134,-731.37,0.00011704,2]
[347041568,1735481450143,-175.19908625,0.00011706,2]
[347041569,1735481450153,-155.04,0.00011706,2]
[347041570,1735481450162,-621.02,0.00011706,2]
[347041571,1735481450171,-500.0,0.00011706,2]
[347041572,1735481450180,-545.72,0.00011706,2]
[347041573,1735481450189,-500.0,0.00011706,2]
[347041574,1735481450198,-500.0,0.00011706,2]
[347041575,1735481450207,-535.06,0.00011706,2]
[347041576,1735481450216,-754.68,0.00011706,2]
[347041577,1735481450225,-1646.12,0.00011706,2]
[347041578,1735481450234,-756.19,0.00011706,2]
[347041579,1735481450243,-598.21,0.00011706,2]
[347041580,1735481450252,-500.0,0.00011706,2]
[347041581,1735481450264,-500.0,0.00011706,2]
[347041582,1735481450274,-1165.8,0.00011706,2]
[347041583,1735481450283,-602.63,0.00011706,2]
[347041584,1735481450292,-717.69,0.00011706,2]
[347041585,1735481450301,-692.5,0.00011706,2]
[347041586,1735481450310,-500.0,0.00011706,2]
[347041587,1735481450320,-500.0,0.00011706,2]
[347041588,1735481450329,-500.0,0.00011706,2]
[347041589,1735481450338,-598.29,0.00011706,2]
[347041590,1735481450348,-500.0,0.00011706,2]
[347041591,1735481450357,-500.0,0.00011706,2]
[347041592,1735481450366,-500.0,0.00011706,2]
[347041593,1735481450375,-500.0,0.00011706,2]
[347041594,1735481450385,-500.0,0.00011706,2]
[347041595,1735481450394,-500.0,0.00011706,2]
[347041596,1735481450405,-500.0,0.00011707,2]
[347041597,1735481450414,-500.0,0.00011707,2]
[347041598,1735481450424,-14519.97,0.00011707,2]
[347041599,1735481450433,-521.93,0.00011707,2]
[347041600,1735481450443,-1654.88,0.00011708,2]
[347041601,1735481450453,-500.0,0.00011708,2]
[347041602,1735481450464,-500.0,0.00011708,2]
[347041603,1735481450473,-500.0,0.00011708,2]
[347041604,1735481450483,-500.0,0.00011708,2]
[347041605,1735481450492,-500.0,0.00011708,2]
[347041606,1735481450502,-2927.25,0.00011709,2]
[347041607,1735481450512,-587.66,0.00011709,2]
[347041608,1735481450521,-500.0,0.00011709,2]
[347041609,1735481450531,-4583.19,0.0001171,2]
[347041610,1735481450540,-1000.0,0.00011735,2]
[347041611,1735481450549,-500.0,0.00011827,2]
[347041612,1735481450561,-500.0,0.00011873,2]
[347041613,1735481450571,-500.0,0.00011873,2]
[347041614,1735481450581,-159.22915729,0.00011873,2]
[347041615,1735481450590,-246.3746466,0.0001188,2]
[347041616,1735481450600,-7640.77159283,0.000119,2]
[347041617,1735481450610,-121711.26535979,0.000119,2]
[347041618,1735481450620,-500.0,0.00011978,2]
[347041619,1735481450629,-1446.72,0.00011978,2]
[347041620,1735481450639,-731.37,0.00011978,2]
[347041621,1735481450648,-621.02,0.0001198,2]